[Event "Titled Tuesday Blitz April 12 Early 2022"]
[White "Rustemov, Alexander"]
[Black "Nakamura, Hikaru"]
[WhiteFideId "4119002"]
[BlackFideId "2016192"]
[WhiteElo "2832"]
[BlackElo "2850"]
[Result "0-1"]
[Round "03"]
[TimeControl "180+1"]
[Date "2022.04.12"]
[WhiteClock "0:00:04"]
[BlackClock "0:00:41"]

1. d4 {[%clk 0:03:00]}  g6 {[%clk 0:03:00]} 2. Nf3 {[%clk 0:03:01]}  Bg7 {[%clk 0:02:59]} 3. c4 {[%clk 0:03:01]}  d6 {[%clk 0:02:59]} 4. g3 {[%clk 0:03:01]}  Nf6 {[%clk 0:02:58]} 5. Bg2 {[%clk 0:03:02]}  O-O {[%clk 0:02:59]} 6. Nc3 {[%clk 0:03:02]}  Nc6 {[%clk 0:02:59]} 7. O-O {[%clk 0:03:02]}  Bg4 {[%clk 0:02:58]} 8. h3 {[%clk 0:03:01]}  Bxf3 {[%clk 0:02:58]} 9. Bxf3 {[%clk 0:03:02]}  Nd7 {[%clk 0:02:58]} 10. e3 {[%clk 0:03:02]}  e5 {[%clk 0:02:58]} 11. d5 {[%clk 0:03:03]}  Ne7 {[%clk 0:02:58]} 12. e4 {[%clk 0:03:03]}  f5 {[%clk 0:02:59]} 13. h4 {[%clk 0:03:04]}  h6 {[%clk 0:02:59]} 14. h5 {[%clk 0:03:02]}  g5 {[%clk 0:02:56]} 15. exf5 {[%clk 0:03:02]}  Nxf5 {[%clk 0:02:57]} 16. Bg4 {[%clk 0:03:01]}  Nd4 {[%clk 0:02:52]} 17. Be3 {[%clk 0:02:54]}  Nf6 {[%clk 0:02:49]} 18. Bxd4 {[%clk 0:02:45]}  exd4 {[%clk 0:02:22]} 19. Be6+ {[%clk 0:02:45]}  Kh8 {[%clk 0:02:22]} 20. Nb5 {[%clk 0:02:45]}  Ne4 {[%clk 0:02:08]} 21. Nxd4 {[%clk 0:02:41]}  Qf6 {[%clk 0:02:08]} 22. Nf5 {[%clk 0:02:31]}  Rae8 {[%clk 0:02:07]} 23. g4 {[%clk 0:02:14]}  Nc5 {[%clk 0:01:33]} 24. Rb1 {[%clk 0:01:48]}  Nxe6 {[%clk 0:01:32]} 25. dxe6 {[%clk 0:01:49]}  Rxe6 {[%clk 0:01:33]} 26. Re1 {[%clk 0:01:48]}  Rfe8 {[%clk 0:01:32]} 27. Rxe6 {[%clk 0:01:47]}  Qxe6 {[%clk 0:01:33]} 28. b3 {[%clk 0:01:36]}  Qe4 {[%clk 0:01:31]} 29. f3 {[%clk 0:01:22]}  Qe2 {[%clk 0:01:15]} 30. Qxe2 {[%clk 0:01:20]}  Rxe2 {[%clk 0:01:16]} 31. Kf1 {[%clk 0:01:14]}  Rxa2 {[%clk 0:01:15]} 32. Re1 {[%clk 0:01:14]}  Be5 {[%clk 0:01:16]} 33. Nxh6 {[%clk 0:01:13]}  Kg7 {[%clk 0:01:16]} 34. Nf5+ {[%clk 0:01:09]}  Kf6 {[%clk 0:01:17]} 35. Re2 {[%clk 0:01:05]}  Ra1+ {[%clk 0:01:15]} 36. Kf2 {[%clk 0:01:03]}  Rb1 {[%clk 0:01:15]} 37. Re3 {[%clk 0:00:59]}  Rb2+ {[%clk 0:01:13]} 38. Ke1 {[%clk 0:00:57]}  a5 {[%clk 0:01:13]} 39. Kd1 {[%clk 0:00:56]}  b6 {[%clk 0:01:03]} 40. Kc1 {[%clk 0:00:54]}  Ra2 {[%clk 0:01:03]} 41. Rd3 {[%clk 0:00:54]}  Rh2 {[%clk 0:01:00]} 42. Kd1 {[%clk 0:00:53]}  Ke6 {[%clk 0:01:00]} 43. Rd2 {[%clk 0:00:50]}  Rh1+ {[%clk 0:01:00]} 44. Kc2 {[%clk 0:00:50]}  Rf1 {[%clk 0:00:59]} 45. Rd3 {[%clk 0:00:40]}  Rf2+ {[%clk 0:00:59]} 46. Kd1 {[%clk 0:00:39]}  c6 {[%clk 0:00:59]} 47. Rd2 {[%clk 0:00:32]}  Rf1+ {[%clk 0:00:52]} 48. Ke2 {[%clk 0:00:31]}  Rb1 {[%clk 0:00:51]} 49. Rd3 {[%clk 0:00:21]}  Rb2+ {[%clk 0:00:50]} 50. Ke3 {[%clk 0:00:16]}  Bf4+ {[%clk 0:00:42]} 51. Ke4 {[%clk 0:00:16]}  Re2+ {[%clk 0:00:40]} 52. Ne3 {[%clk 0:00:14]}  d5+ {[%clk 0:00:40]} 53. cxd5+ {[%clk 0:00:04]}  cxd5+ {[%clk 0:00:41]} 0-1


[Site "https://www.chess.com"]

[Event "Titled Tuesday Blitz April 12 Early 2022"]
[White "Sadilek, Peter"]
[Black "Shohat, Yotam"]
[WhiteFideId "1616439"]
[BlackFideId "2813955"]
[WhiteElo "2145"]
[BlackElo "2119"]
[Result "0-1"]
[Round "03"]
[TimeControl "180+1"]
[Date "2022.04.13"]
[WhiteClock "0:00:01"]
[BlackClock "0:00:19"]

1. d4 {[%clk 0:02:49]}  Nf6 {[%clk 0:02:59]} 2. c4 {[%clk 0:02:47]}  c5 {[%clk 0:02:59]} 3. d5 {[%clk 0:02:47]}  b5 {[%clk 0:02:59]} 4. cxb5 {[%clk 0:02:48]}  a6 {[%clk 0:03:00]} 5. Nc3 {[%clk 0:02:46]}  g6 {[%clk 0:02:56]} 6. e4 {[%clk 0:02:45]}  d6 {[%clk 0:02:50]} 7. Nf3 {[%clk 0:02:39]}  Bg7 {[%clk 0:02:43]} 8. bxa6 {[%clk 0:02:36]}  Qa5 {[%clk 0:02:38]} 9. Bb5+ {[%clk 0:02:29]}  Nfd7 {[%clk 0:02:38]} 10. Bd2 {[%clk 0:02:20]}  O-O {[%clk 0:02:30]} 11. a4 {[%clk 0:02:07]}  Bxa6 {[%clk 0:02:23]} 12. O-O {[%clk 0:02:07]}  Ne5 {[%clk 0:02:17]} 13. Nxe5 {[%clk 0:01:57]}  Bxe5 {[%clk 0:02:18]} 14. h4 {[%clk 0:01:22]}  Qb4 {[%clk 0:01:59]} 15. Qc2 {[%clk 0:01:18]}  Bxb5 {[%clk 0:01:53]} 16. axb5 {[%clk 0:01:07]}  Nd7 {[%clk 0:01:47]} 17. h5 {[%clk 0:00:45]}  Nb6 {[%clk 0:01:44]} 18. hxg6 {[%clk 0:00:30]}  fxg6 {[%clk 0:01:45]} 19. Na4 {[%clk 0:00:22]}  Qxb5 {[%clk 0:01:41]} 20. Nxb6 {[%clk 0:00:23]}  Qxb6 {[%clk 0:01:40]} 21. Bc3 {[%clk 0:00:23]}  Bxc3 {[%clk 0:01:27]} 22. Qxc3 {[%clk 0:00:24]}  Rxa1 {[%clk 0:01:17]} 23. Rxa1 {[%clk 0:00:23]}  Rb8 {[%clk 0:01:17]} 24. Qh3 {[%clk 0:00:20]}  Qxb2 {[%clk 0:01:12]} 25. Qe6+ {[%clk 0:00:19]}  Kf8 {[%clk 0:01:07]} 26. Ra7 {[%clk 0:00:02]}  Qc1+ {[%clk 0:00:46]} 27. Kh2 {[%clk 0:00:03]}  Qf4+ {[%clk 0:00:46]} 28. Kh3 {[%clk 0:00:03]}  Qf7 {[%clk 0:00:43]} 29. Qxf7+ {[%clk 0:00:02]}  Kxf7 {[%clk 0:00:44]} 30. Kg4 {[%clk 0:00:02]}  Rc8 {[%clk 0:00:41]} 31. Ra3 {[%clk 0:00:02]}  Kf6 {[%clk 0:00:38]} 32. Kf4 {[%clk 0:00:01]}  g5+ {[%clk 0:00:38]} 33. Ke3 {[%clk 0:00:02]}  Ke5 {[%clk 0:00:38]} 34. f3 {[%clk 0:00:02]}  h5 {[%clk 0:00:25]} 35. Ra7 {[%clk 0:00:02]}  Kf6 {[%clk 0:00:22]} 36. Ra3 {[%clk 0:00:01]}  h4 {[%clk 0:00:20]} 37. f4 {[%clk 0:00:01]}  g4 {[%clk 0:00:19]} 0-1


[Site "https://www.chess.com"]

[Event "Titled Tuesday Blitz April 12 Early 2022"]
[White "Sadykov, Ramil"]
[Black "Sahil, Tickoo"]
[WhiteFideId "24113590"]
[BlackFideId "5019710"]
[WhiteElo "2300"]
[BlackElo "2099"]
[Result "0-1"]
[Round "03"]
[TimeControl "180+1"]
[Date "2022.04.13"]
[WhiteClock "0:00:01"]
[BlackClock "0:01:16"]

1. d4 {[%clk 0:03:00]}  Nf6 {[%clk 0:02:54]} 2. Nc3 {[%clk 0:02:59]}  d5 {[%clk 0:02:51]} 3. Bf4 {[%clk 0:03:00]}  e6 {[%clk 0:02:50]} 4. e3 {[%clk 0:02:58]}  Bd6 {[%clk 0:02:50]} 5. Qf3 {[%clk 0:02:57]}  Bxf4 {[%clk 0:02:49]} 6. Qxf4 {[%clk 0:02:58]}  Qd6 {[%clk 0:02:49]} 7. Qxd6 {[%clk 0:02:52]}  cxd6 {[%clk 0:02:48]} 8. Nb5 {[%clk 0:02:53]}  Kd7 {[%clk 0:02:37]} 9. a4 {[%clk 0:02:39]}  a6 {[%clk 0:02:34]} 10. Na3 {[%clk 0:02:30]}  Nc6 {[%clk 0:02:31]} 11. c3 {[%clk 0:01:50]}  b6 {[%clk 0:02:18]} 12. Nf3 {[%clk 0:00:53]}  Bb7 {[%clk 0:02:15]} 13. Bd3 {[%clk 0:00:49]}  Rac8 {[%clk 0:02:11]} 14. Ke2 {[%clk 0:00:41]}  Rhd8 {[%clk 0:02:05]} 15. Nd2 {[%clk 0:00:38]}  Ke7 {[%clk 0:01:57]} 16. b4 {[%clk 0:00:32]}  h5 {[%clk 0:01:50]} 17. Nb3 {[%clk 0:00:27]}  e5 {[%clk 0:01:47]} 18. b5 {[%clk 0:00:22]}  Nb8 {[%clk 0:01:40]} 19. Rhc1 {[%clk 0:00:18]}  Ne4 {[%clk 0:01:30]} 20. Nb1 {[%clk 0:00:16]}  a5 {[%clk 0:01:22]} 21. f3 {[%clk 0:00:13]}  Nf6 {[%clk 0:01:20]} 22. N1d2 {[%clk 0:00:01]}  e4 {[%clk 0:01:18]} 23. fxe4 {[%clk 0:00:01]}  Nxe4 {[%clk 0:01:16]} 0-1


[Site "https://www.chess.com"]

[Event "Titled Tuesday Blitz April 12 Early 2022"]
[White "Samant Aditya S"]
[Black "Odegov, Artem"]
[WhiteFideId "35080580"]
[BlackFideId "34183644"]
[WhiteElo "1916"]
[BlackElo "2286"]
[Result "0-1"]
[Round "03"]
[TimeControl "180+1"]
[Date "2022.04.13"]
[WhiteClock "0:00:09"]
[BlackClock "0:00:23"]

1. d4 {[%clk 0:03:00]}  Nf6 {[%clk 0:02:59]} 2. c4 {[%clk 0:03:01]}  g6 {[%clk 0:03:00]} 3. Nc3 {[%clk 0:03:01]}  Bg7 {[%clk 0:03:01]} 4. e4 {[%clk 0:03:02]}  d6 {[%clk 0:03:02]} 5. h3 {[%clk 0:03:02]}  O-O {[%clk 0:03:02]} 6. Nf3 {[%clk 0:03:03]}  c5 {[%clk 0:03:01]} 7. d5 {[%clk 0:03:02]}  e6 {[%clk 0:03:01]} 8. Bd3 {[%clk 0:03:03]}  exd5 {[%clk 0:03:01]} 9. exd5 {[%clk 0:03:04]}  Re8+ {[%clk 0:03:02]} 10. Be3 {[%clk 0:03:04]}  Nbd7 {[%clk 0:02:55]} 11. O-O {[%clk 0:03:04]}  h6 {[%clk 0:02:51]} 12. Bf4 {[%clk 0:02:57]}  Nf8 {[%clk 0:02:51]} 13. Nb5 {[%clk 0:02:46]}  Ne4 {[%clk 0:02:38]} 14. Qc2 {[%clk 0:02:04]}  a6 {[%clk 0:02:14]} 15. Bxe4 {[%clk 0:02:00]}  axb5 {[%clk 0:02:13]} 16. cxb5 {[%clk 0:02:01]}  Qf6 {[%clk 0:02:13]} 17. Bg3 {[%clk 0:01:50]}  Bd7 {[%clk 0:02:12]} 18. a4 {[%clk 0:01:41]}  Re7 {[%clk 0:01:54]} 19. Rad1 {[%clk 0:01:10]}  Rae8 {[%clk 0:01:50]} 20. Bd3 {[%clk 0:01:10]}  Bxh3 {[%clk 0:01:35]} 21. Nd2 {[%clk 0:00:58]}  Bf5 {[%clk 0:01:17]} 22. Bxf5 {[%clk 0:00:57]}  gxf5 {[%clk 0:01:18]} 23. Bf4 {[%clk 0:00:50]}  Ng6 {[%clk 0:01:18]} 24. Bh2 {[%clk 0:00:45]}  f4 {[%clk 0:01:17]} 25. Nc4 {[%clk 0:00:21]}  Nh4 {[%clk 0:01:04]} 26. f3 {[%clk 0:00:13]}  Re2 {[%clk 0:00:59]} 27. Rd2 {[%clk 0:00:13]}  Qd4+ {[%clk 0:00:40]} 28. Kh1 {[%clk 0:00:13]}  Rxd2 {[%clk 0:00:38]} 29. Nxd2 {[%clk 0:00:07]}  Re2 {[%clk 0:00:37]} 30. a5 {[%clk 0:00:04]}  Rxd2 {[%clk 0:00:35]} 31. Qe4 {[%clk 0:00:04]}  Qxe4 {[%clk 0:00:23]} 32. fxe4 {[%clk 0:00:04]}  Rxb2 {[%clk 0:00:23]} 33. a6 {[%clk 0:00:05]}  bxa6 {[%clk 0:00:23]} 34. bxa6 {[%clk 0:00:06]}  Ra2 {[%clk 0:00:23]} 35. Bxf4 {[%clk 0:00:06]}  Rxa6 {[%clk 0:00:21]} 36. Kh2 {[%clk 0:00:07]}  Ng6 {[%clk 0:00:21]} 37. Bg3 {[%clk 0:00:07]}  Be5 {[%clk 0:00:22]} 38. Bxe5 {[%clk 0:00:07]}  Nxe5 {[%clk 0:00:23]} 39. Rb1 {[%clk 0:00:07]}  c4 {[%clk 0:00:23]} 40. Rb8+ {[%clk 0:00:07]}  Kg7 {[%clk 0:00:24]} 41. Rc8 {[%clk 0:00:08]}  Ra2 {[%clk 0:00:23]} 42. Kg3 {[%clk 0:00:09]}  Rc2 {[%clk 0:00:23]} 0-1


[Site "https://www.chess.com"]

[Event "Titled Tuesday Blitz April 12 Early 2022"]
[White "Sapunov, Evgeny"]
[Black "Avalos Parra, Joao"]
[WhiteFideId "4126661"]
[BlackFideId "3402541"]
[WhiteElo "2470"]
[BlackElo "2173"]
[Result "1-0"]
[Round "03"]
[TimeControl "180+1"]
[Date "2022.04.13"]
[WhiteClock "0:01:57"]
[BlackClock "0:00:42"]

1. c4 {[%clk 0:02:54]}  Nf6 {[%clk 0:02:56]} 2. Nf3 {[%clk 0:02:54]}  g6 {[%clk 0:02:56]} 3. Nc3 {[%clk 0:02:54]}  Bg7 {[%clk 0:02:56]} 4. e4 {[%clk 0:02:54]}  d6 {[%clk 0:02:57]} 5. d4 {[%clk 0:02:54]}  O-O {[%clk 0:02:57]} 6. Be2 {[%clk 0:02:55]}  e5 {[%clk 0:02:56]} 7. O-O {[%clk 0:02:55]}  Na6 {[%clk 0:02:56]} 8. Be3 {[%clk 0:02:55]}  Ng4 {[%clk 0:02:55]} 9. Bg5 {[%clk 0:02:55]}  Qe8 {[%clk 0:02:56]} 10. Re1 {[%clk 0:02:55]}  f6 {[%clk 0:02:51]} 11. Bh4 {[%clk 0:02:53]}  g5 {[%clk 0:02:47]} 12. Bg3 {[%clk 0:02:53]}  h5 {[%clk 0:02:48]} 13. h3 {[%clk 0:02:53]}  Nh6 {[%clk 0:02:49]} 14. d5 {[%clk 0:02:52]}  Qe7 {[%clk 0:02:41]} 15. Nd2 {[%clk 0:02:52]}  h4 {[%clk 0:02:39]} 16. Bh2 {[%clk 0:02:52]}  f5 {[%clk 0:02:39]} 17. exf5 {[%clk 0:02:51]}  Nxf5 {[%clk 0:02:40]} 18. Bg4 {[%clk 0:02:48]}  Nd4 {[%clk 0:02:40]} 19. Nde4 {[%clk 0:02:48]}  Bxg4 {[%clk 0:02:14]} 20. Qxg4 {[%clk 0:02:45]}  Nc2 {[%clk 0:01:57]} 21. Nxg5 {[%clk 0:02:44]}  Nxa1 {[%clk 0:01:55]} 22. Rxa1 {[%clk 0:02:45]}  Nc5 {[%clk 0:01:49]} 23. b4 {[%clk 0:02:27]}  Nd3 {[%clk 0:01:49]} 24. Nce4 {[%clk 0:02:24]}  Qe8 {[%clk 0:01:04]} 25. Ne6 {[%clk 0:02:20]}  Qf7 {[%clk 0:01:04]} 26. f3 {[%clk 0:02:11]}  Rae8 {[%clk 0:00:58]} 27. a3 {[%clk 0:02:00]}  Rxe6 {[%clk 0:00:42]} 28. dxe6 {[%clk 0:01:59]}  Qf5 {[%clk 0:00:42]} 29. e7 {[%clk 0:01:57]} 1-0


[Site "https://www.chess.com"]

[Event "Titled Tuesday Blitz April 12 Early 2022"]
[White "Savchenko, Boris"]
[Black "Ibadov, Dashgyn"]
[WhiteFideId "4147332"]
[BlackFideId "24107514"]
[WhiteElo "2557"]
[BlackElo "2138"]
[Result "0-1"]
[Round "03"]
[TimeControl "180+1"]
[Date "2022.04.13"]
[WhiteClock "0:00:53"]
[BlackClock "0:00:53"]

1. Nc3 {[%clk 0:02:44]}  d5 {[%clk 0:02:56]} 2. e3 {[%clk 0:02:40]}  Nf6 {[%clk 0:02:55]} 3. f4 {[%clk 0:02:31]}  c5 {[%clk 0:02:49]} 4. Bb5+ {[%clk 0:02:27]}  Bd7 {[%clk 0:02:47]} 5. Qe2 {[%clk 0:02:26]}  Nc6 {[%clk 0:02:44]} 6. Nf3 {[%clk 0:02:22]}  e6 {[%clk 0:02:42]} 7. Nd1 {[%clk 0:02:13]}  Bd6 {[%clk 0:02:40]} 8. Nf2 {[%clk 0:02:12]}  O-O {[%clk 0:02:39]} 9. a3 {[%clk 0:02:01]}  a6 {[%clk 0:02:38]} 10. Bxc6 {[%clk 0:02:00]}  Bxc6 {[%clk 0:02:39]} 11. d3 {[%clk 0:02:00]}  Qe7 {[%clk 0:02:30]} 12. Ne5 {[%clk 0:01:56]}  Bxe5 {[%clk 0:02:15]} 13. fxe5 {[%clk 0:01:55]}  Nd7 {[%clk 0:02:16]} 14. d4 {[%clk 0:01:50]}  cxd4 {[%clk 0:02:15]} 15. exd4 {[%clk 0:01:51]}  f6 {[%clk 0:02:15]} 16. Bf4 {[%clk 0:01:47]}  fxe5 {[%clk 0:02:04]} 17. Bxe5 {[%clk 0:01:47]}  Nxe5 {[%clk 0:01:56]} 18. Qxe5 {[%clk 0:01:47]}  Bb5 {[%clk 0:01:51]} 19. Ng4 {[%clk 0:01:38]}  Rf5 {[%clk 0:01:42]} 20. Qg3 {[%clk 0:01:36]}  Rg5 {[%clk 0:01:02]} 21. Qh4 {[%clk 0:01:23]}  Re5+ {[%clk 0:00:58]} 22. dxe5 {[%clk 0:01:16]}  Qxh4+ {[%clk 0:00:57]} 23. Nf2 {[%clk 0:01:17]}  Rf8 {[%clk 0:00:55]} 24. g3 {[%clk 0:01:16]}  Qd4 {[%clk 0:00:55]} 25. Rd1 {[%clk 0:00:53]}  Qe3# {[%clk 0:00:53]} 0-1


[Site "https://www.chess.com"]

[Event "Titled Tuesday Blitz April 12 Early 2022"]
[White "Secheres, Adrian-Simion"]
[Black "Bluebaum, Matthias"]
[WhiteFideId "1217445"]
[BlackFideId "24651516"]
[WhiteElo "2277"]
[BlackElo "2550"]
[Result "0-1"]
[Round "03"]
[TimeControl "180+1"]
[Date "2022.04.12"]
[WhiteClock "0:00:11"]
[BlackClock "0:00:43"]

1. d4 {[%clk 0:03:00]}  Nf6 {[%clk 0:03:00]} 2. c4 {[%clk 0:03:00]}  e6 {[%clk 0:03:00]} 3. Nf3 {[%clk 0:03:01]}  d5 {[%clk 0:03:01]} 4. Nc3 {[%clk 0:03:01]}  Bb4 {[%clk 0:03:00]} 5. Bg5 {[%clk 0:02:59]}  h6 {[%clk 0:03:00]} 6. Bxf6 {[%clk 0:03:00]}  Qxf6 {[%clk 0:03:01]} 7. Qa4+ {[%clk 0:03:00]}  Nc6 {[%clk 0:03:01]} 8. e3 {[%clk 0:03:00]}  O-O {[%clk 0:03:01]} 9. Rd1 {[%clk 0:03:00]}  Rd8 {[%clk 0:02:56]} 10. Be2 {[%clk 0:02:51]}  Bd7 {[%clk 0:02:56]} 11. Qc2 {[%clk 0:02:50]}  dxc4 {[%clk 0:02:35]} 12. Bxc4 {[%clk 0:02:49]}  Bf8 {[%clk 0:02:35]} 13. O-O {[%clk 0:02:40]}  Rac8 {[%clk 0:02:36]} 14. Ne4 {[%clk 0:02:28]}  Qg6 {[%clk 0:02:36]} 15. a3 {[%clk 0:02:28]}  f5 {[%clk 0:02:10]} 16. Nc5 {[%clk 0:02:22]}  Bxc5 {[%clk 0:02:10]} 17. dxc5 {[%clk 0:02:23]}  Qf6 {[%clk 0:02:10]} 18. b4 {[%clk 0:02:21]}  Be8 {[%clk 0:02:08]} 19. Rxd8 {[%clk 0:01:44]}  Rxd8 {[%clk 0:02:09]} 20. Rd1 {[%clk 0:01:44]}  Bf7 {[%clk 0:02:02]} 21. h3 {[%clk 0:01:42]}  Kf8 {[%clk 0:02:00]} 22. Rxd8+ {[%clk 0:01:29]}  Qxd8 {[%clk 0:02:01]} 23. Kf1 {[%clk 0:01:28]}  a6 {[%clk 0:01:54]} 24. Ke1 {[%clk 0:01:26]}  Qf6 {[%clk 0:01:50]} 25. Ba2 {[%clk 0:01:01]}  Qa1+ {[%clk 0:01:47]} 26. Ke2 {[%clk 0:01:02]}  Ke7 {[%clk 0:01:35]} 27. Nd2 {[%clk 0:01:00]}  Qg1 {[%clk 0:01:29]} 28. g3 {[%clk 0:01:00]}  Bh5+ {[%clk 0:01:29]} 29. g4 {[%clk 0:00:43]}  fxg4 {[%clk 0:01:26]} 30. hxg4 {[%clk 0:00:41]}  Bxg4+ {[%clk 0:01:24]} 31. f3 {[%clk 0:00:41]}  Qg2+ {[%clk 0:01:23]} 32. Kd3 {[%clk 0:00:39]}  Bxf3 {[%clk 0:01:20]} 33. Nxf3 {[%clk 0:00:39]}  Qxf3 {[%clk 0:01:20]} 34. Qh2 {[%clk 0:00:39]}  Qd1+ {[%clk 0:01:16]} 35. Kc3 {[%clk 0:00:37]}  Qc1+ {[%clk 0:01:15]} 36. Kb3 {[%clk 0:00:35]}  Qxe3+ {[%clk 0:01:16]} 37. Ka4 {[%clk 0:00:36]}  Kd7 {[%clk 0:00:58]} 38. Qg2 {[%clk 0:00:23]}  g5 {[%clk 0:00:57]} 39. Qc2 {[%clk 0:00:22]}  b5+ {[%clk 0:00:54]} 40. cxb6 {[%clk 0:00:22]}  cxb6 {[%clk 0:00:55]} 41. Bxe6+ {[%clk 0:00:14]}  Qxe6 {[%clk 0:00:50]} 42. Qh7+ {[%clk 0:00:14]}  Kd6 {[%clk 0:00:49]} 43. Qd3+ {[%clk 0:00:12]}  Kc7 {[%clk 0:00:43]} 44. Qh7+ {[%clk 0:00:11]}  Ne7 {[%clk 0:00:43]} 0-1


[Site "https://www.chess.com"]

[Event "Titled Tuesday Blitz April 12 Early 2022"]
[White "Shtyka, Sergey"]
[Black "Madaminov, Mukhiddin"]
[WhiteFideId "4138465"]
[BlackFideId "14210703"]
[WhiteElo "2014"]
[BlackElo "1916"]
[Result "1-0"]
[Round "03"]
[TimeControl "180+1"]
[Date "2022.04.13"]
[WhiteClock "0:00:07"]
[BlackClock "0:00:01"]

1. e4 {[%clk 0:03:00]}  e6 {[%clk 0:03:00]} 2. Nf3 {[%clk 0:03:00]}  d5 {[%clk 0:03:00]} 3. e5 {[%clk 0:03:01]}  c5 {[%clk 0:03:00]} 4. b4 {[%clk 0:03:01]}  Nc6 {[%clk 0:03:00]} 5. bxc5 {[%clk 0:03:01]}  Bxc5 {[%clk 0:03:00]} 6. d4 {[%clk 0:03:01]}  Bb6 {[%clk 0:02:59]} 7. c3 {[%clk 0:03:01]}  f6 {[%clk 0:03:00]} 8. Bd3 {[%clk 0:03:01]}  fxe5 {[%clk 0:02:59]} 9. Nxe5 {[%clk 0:03:01]}  Nxe5 {[%clk 0:02:58]} 10. dxe5 {[%clk 0:03:01]}  Ne7 {[%clk 0:02:51]} 11. Qh5+ {[%clk 0:02:58]}  g6 {[%clk 0:02:51]} 12. Qh6 {[%clk 0:02:55]}  Qc7 {[%clk 0:02:43]} 13. Bf4 {[%clk 0:02:36]}  Bd7 {[%clk 0:02:32]} 14. O-O {[%clk 0:02:32]}  O-O-O {[%clk 0:02:32]} 15. Nd2 {[%clk 0:02:19]}  Rdf8 {[%clk 0:02:26]} 16. Bg3 {[%clk 0:02:16]}  Nf5 {[%clk 0:02:24]} 17. Bxf5 {[%clk 0:02:14]}  Rxf5 {[%clk 0:02:25]} 18. c4 {[%clk 0:02:08]}  Rhf8 {[%clk 0:02:06]} 19. cxd5 {[%clk 0:02:04]}  Kb8 {[%clk 0:01:55]} 20. Qxh7 {[%clk 0:01:44]}  Qc2 {[%clk 0:00:59]} 21. Nf3 {[%clk 0:01:15]}  R5f7 {[%clk 0:00:33]} 22. Qh6 {[%clk 0:01:07]}  Ka8 {[%clk 0:00:24]} 23. dxe6 {[%clk 0:01:07]}  Bxe6 {[%clk 0:00:25]} 24. Rac1 {[%clk 0:01:03]}  Qxa2 {[%clk 0:00:23]} 25. Qxg6 {[%clk 0:00:59]}  Bd5 {[%clk 0:00:19]} 26. Rc2 {[%clk 0:00:45]}  Qb3 {[%clk 0:00:19]} 27. Rfc1 {[%clk 0:00:44]}  Bc6 {[%clk 0:00:16]} 28. Rxc6 {[%clk 0:00:40]}  bxc6 {[%clk 0:00:15]} 29. Qxc6+ {[%clk 0:00:39]}  Rb7 {[%clk 0:00:15]} 30. e6 {[%clk 0:00:37]}  Rh8 {[%clk 0:00:06]} 31. e7 {[%clk 0:00:34]}  Qf7 {[%clk 0:00:06]} 32. Qc8+ {[%clk 0:00:20]}  Rb8 {[%clk 0:00:06]} 33. Bxb8 {[%clk 0:00:13]}  Rxc8 {[%clk 0:00:07]} 34. Rxc8 {[%clk 0:00:13]}  Qa2 {[%clk 0:00:07]} 35. Be5+ {[%clk 0:00:07]}  Kb7 {[%clk 0:00:07]} 36. Rb8+ {[%clk 0:00:08]}  Ka6 {[%clk 0:00:05]} 37. h3 {[%clk 0:00:07]}  Qxf2+ {[%clk 0:00:03]} 38. Kh2 {[%clk 0:00:07]}  Qf1 {[%clk 0:00:01]} 39. e8=Q {[%clk 0:00:07]}  Bg1+ {[%clk 0:00:01]} 40. Nxg1 {[%clk 0:00:07]} 1-0


[Site "https://www.chess.com"]